[Event "Bangabandhu Premier Div League 2023-24"]
[Site "Dhaka"]
[Date "2024.02.07"]
[Round "7.4"]
[White "Rahman, Ziaur"]
[Black "Abdullah Al, Raison"]
[Result "1-0"]
[ECO "A39"]
[WhiteElo "2428"]
[BlackElo "1839"]
[Annotator "TA"]
[PlyCount "74"]
[EventDate "2024.02.01"]
[EventCountry "BAN"]
[SourceTitle "playchess.com"]
[Source "ChessBase"]
[SourceQuality "1"]
[TimeControl "40/5400+30:1800+30"]

{[%evp 16,74,29,33,107,65,69,28,43,29,55,16,54,59,50,49,57,46,43,28,37,35,45,32,53,50,56,50,60,50,51,40,48,36,45,45,45,38,57,45,52,52,52,0,58,52,58,52,60,52,60,39,60,16,48,0,57,14,60,10,68]} 1. Nf3 {[%emt 0:14:31]} Nf6 {[%emt 0:00:14]} 2. c4 {[%emt 1:16:59]} c5 {[%emt 0:06:08]} 3. Nc3 {[%emt 0:00:00]} Nc6 {[%emt 0:00:03]} 4. g3 {[%emt 0:00:00]} g6 {[%emt 0:00:05]} 5. Bg2 {[%emt 0:00:00]} Bg7 {[%emt 0:00:05]} 6. O-O {[%emt 0:00:00]} O-O {[%emt 0:00:03]} 7. d4 {[%emt 0:00:00]} cxd4 {[%emt 0:00:02]} 8. Nxd4 {[%emt 0:03:00]} Qa5 {[%emt 1:27:50]} 9. e3 {[%emt 0:00:30]} Qh5 {[%emt 0:00:30]} (9... d6 $14) 10. Qxh5 {[%emt 0:00:00]} Nxh5 {[%emt 0:00:00]} 11. Nd5 {[%emt 0:01:00] White is more active.} e6 {[%emt 0:01:00] White has an edge.} 12. Nxc6 {[%emt 0:00:30]} dxc6 {[%emt 0:00:00]} 13. Ne7+ {[%emt 0:00:00]} Kh8 {[%emt 0:01:00]} 14. Rd1 {[%emt 0:01:00] Repels Bd7} Bf6 {[%emt 0:00:00]} 15. Nxc8 {[%emt 0:00:30]} Raxc8 {[%emt 0:01:00]} 16. Rb1 {[%emt 0:00:00]} Rfd8 {[%emt 0:00:00]} 17. Rd2 {[%emt 0:01:00]} Kg8 {[%emt 0:00:00]} 18. Kf1 {[%emt 0:00:30]} Ng7 {[%emt 0:00:00][%cal Bh5g7,Bg7f5,Bf5e7,Be7d5][%mdl 32]} 19. Ke2 {[%emt 0:00:00]} h5 {[%emt 0:02:00]} 20. b4 {[%emt 0:01:00]} Rxd2+ {[%emt 0:00:00]} 21. Bxd2 {[%emt 0:00:30]} Nf5 {[%emt 0:00:00]} 22. c5 a6 {[%emt 0:01:30]} 23. h3 {[%emt 0:00:00]} Kg7 {[%emt 0:00:30]} 24. a4 {[%emt 0:01:30]} Ne7 {[%emt 0:00:30]} 25. Rb3 {[%emt 0:00:30]} Nd5 {[%emt 0:00:30]} 26. Rd3 {[%emt 0:00:30]} Rd8 {[%emt 0:00:30]} 27. h4 {[%emt 0:00:30]} Nc7 {[%emt 0:00:00]} 28. Rxd8 {[%emt 0:00:00]} Bxd8 $14 {[%emt 0:00:00][%mdl 4096] Endgame. KBB-KBN} 29. e4 {[%emt 0:01:00]} (29. Kd3 $14) 29... f5 {[%emt 0:01:30]} (29... a5 $11) 30. Kd3 {[%emt 0:00:00]} Kf7 {[%emt 0:00:30]} 31. Kc4 {[%emt 0:01:00]} Ke8 {[%emt 0:00:30]} 32. Bf4 {[%emt 0:00:00]} Kd7 {[%emt 0:00:30]} 33. Be5 {[%emt 0:01:00]} Be7 {[%emt 0:00:30]} 34. Bf3 {[%emt 0:00:00]} Bd8 {[%emt 0:00:30]} 35. Be2 {[%emt 0:01:00]} (35. Bc3 $14) 35... Be7 {[%emt 0:00:00]} (35... fxe4 $11 36. Bxc7 Kxc7) 36. Kd4 {[%emt 0:00:00]} Bd8 {[%emt 0:00:00]} (36... fxe4 $11 37. Bxc7 (37. Kxe4 Nd5 $15) 37... Kxc7) 37. Ke3 {[%emt 0:01:00]} (37. Bd3 $14) 37... Ne8 {[%emt 0:00:00] Weighted Error Value: White=0.17 (very precise) /Black=0.21 (precise) .  Mistake:       	White=3     	Black=4      Inaccurate:     	White=4     	Black=3      OK:         	White=7     	Black=1} (37... fxe4 $11 38. Kxe4 Nd5) 1-0

[Event "Bangabandhu Premier Div League 2023-24"]
[Site "Dhaka"]
[Date "2024.02.07"]
[Round "7.4"]
[White "Manon, Reja Neer"]
[Black "Muhimenul, Islam"]
[Result "1-0"]
[ECO "C02"]
[WhiteElo "2169"]
[BlackElo "1970"]
[Annotator "RC"]
[PlyCount "92"]
[EventDate "2024.02.01"]
[EventCountry "BAN"]
[SourceTitle "playchess.com"]
[Source "ChessBase"]
[SourceQuality "1"]
[TimeControl "40/5400+30:1800+30"]

1. e4 {[%emt 0:00:03]} e6 {[%emt 0:00:16]} 2. d4 {[%emt 0:00:10]} d5 {[%emt 0:00:18]} 3. e5 {[%emt 0:00:03]} c5 {[%emt 0:00:44]} 4. c3 {[%emt 0:00:01]} Nc6 {[%emt 0:00:22]} 5. Nf3 {[%emt 0:00:01]} Qb6 {[%emt 0:00:49]} 6. a3 {[%emt 0:00:04]} c4 {[%emt 0:02:11]} 7. Nbd2 {[%emt 0:00:16]} Na5 {[%emt 0:00:25]} 8. Rb1 {[%emt 0:00:04]} Bd7 {[%emt 0:01:03]} 9. h4 {[%emt 0:00:07]} Rc8 {[%emt 0:04:45]} 10. h5 {[%emt 0:02:48]} h6 {[%emt 0:01:47]} 11. Be2 {[%emt 0:01:23]} Ne7 {[%emt 0:01:04]} 12. g3 {[%emt 0:01:06]} Nb3 {[%emt 0:07:15]} 13. Nxb3 {[%emt 0:12:30]} Ba4 {[%emt 0:00:21]} 14. Be3 {[%emt 0:03:14]} Nc6 {[%emt 0:07:55]} 15. Nfd2 {[%emt 0:12:41]} Na5 {[%emt 0:00:55]} 16. Nxa5 {[%emt 0:00:34]} Bxd1 {[%emt 0:01:32]} 17. Naxc4 {[%emt 0:00:02]} dxc4 {[%emt 0:02:23]} 18. Bxd1 {[%emt 0:00:25]} Qc6 {[%emt 0:08:40]} 19. Rh4 {[%emt 0:03:29]} b5 {[%emt 0:05:09]} 20. Bf3 {[%emt 0:01:21]} Qc7 {[%emt 0:04:01]} 21. Rg4 {[%emt 0:00:42]} Rd8 {[%emt 0:01:48]} 22. Bf4 {[%emt 0:03:16]} a6 {[%emt 0:09:24]} 23. Nf1 {[%emt 0:02:03]} Qb6 {[%emt 0:04:28]} 24. Ne3 {[%emt 0:01:14]} Rd7 {[%emt 0:04:08]} 25. Kf1 {[%emt 0:02:03]} Kd8 {[%emt 0:07:21]} 26. Kg2 {[%emt 0:15:57]} Qa5 {[%emt 0:07:49]} 27. Bd1 {[%emt 0:18:52]} Qb6 {[%emt 0:01:07]} 28. Be2 {[%emt 0:01:26]} Rh7 {[%emt 0:02:26]} 29. Bf3 {[%emt 0:02:10]} Rh8 {[%emt 0:03:03]} 30. a4 {[%emt 0:00:14]} bxa4 {[%emt 0:04:30]} 31. Nxc4 {[%emt 0:00:31]} Qb5 {[%emt 0:00:26]} 32. Nd2 {[%emt 0:00:51]} Qd3 {[%emt 0:04:00]} 33. Be3 {[%emt 0:03:43]} f6 {[%emt 0:01:34]} 34. Rg6 {[%emt 0:03:38]} Be7 {[%emt 0:01:10]} 35. Be4 {[%emt 0:04:55]} Qe2 {[%emt 0:00:24]} 36. Nf3 {[%emt 0:01:19]} Kc7 {[%emt 0:00:50]} 37. Rxg7 {[%emt 0:01:36]} f5 {[%emt 0:00:34]} 38. Bxf5 {[%emt 0:00:16]} exf5 {[%emt 0:00:17]} 39. e6 {[%emt 0:00:01]} Qc2 {[%emt 0:01:41]} 40. Re1 {[%emt 0:00:13]} Re8 {[%emt 0:00:57]} 41. exd7 {[%emt 0:30:27]} Kxd7 {[%emt 0:30:11]} 42. Bxh6 {[%emt 0:00:38]} Qxb2 {[%emt 0:00:56]} 43. Bg5 {[%emt 0:00:15]} a3 {[%emt 0:00:00]} 44. Bxe7 {[%emt 0:00:00]} Rxe7 {[%emt 0:00:00]} 45. Re3 {[%emt 0:06:18]} Kd6 46. Rexe7 {[%emt 0:00:00]} Kd5 {[%emt 0:02:31]} 1-0

[Event "Bangabandhu Premier Div League 2023-24"]
[Site "Dhaka"]
[Date "2024.02.07"]
[Round "7.5"]
[White "Rathanvel, V S"]
[Black "Swarnavo Choudhury"]
[Result "1-0"]
[ECO "B40"]
[WhiteElo "2474"]
[BlackElo "2056"]
[Annotator "TA"]
[PlyCount "119"]
[EventDate "2024.02.01"]
[EventCountry "BAN"]
[SourceTitle "playchess.com"]
[Source "ChessBase"]
[SourceQuality "1"]
[TimeControl "40/5400+30:1800+30"]

{[%evp 9,119,41,87,54,60,65,57,69,66,62,70,52,69,56,70,39,33,23,35,32,47,32,83,75,81,82,106,88,120,118,120,115,128,125,117,93,134,133,141,120,148,104,107,106,172,106,99,92,89,91,212,0,0,0,209,223,217,216,230,230,230,222,252,252,312,238,245,233,227,224,276,244,303,240,267,234,241,238,296,288,308,277,323,328,678,657,641,633,587,531,818,537,5114,5093,2286,2233,29967,29967,29973,29975,29976,29977,29978,29979,29979,29980,29983,29984,29985,29986,29986,29987]} 1. e4 {[%emt 0:00:03]} c5 {[%emt 0:00:08]} 2. Nf3 {[%emt 0:00:09]} e6 {[%emt 0:00:07]} 3. g3 {[%emt 0:00:05]} Nc6 {[%emt 0:00:07]} 4. Bg2 {[%emt 1:32:13]} a6 {[%emt 0:03:25]} 5. O-O {[%emt 0:00:00]} g6 {[%emt 1:29:13]} (5... d6 $14 {was preferrable.}) 6. c3 {[%emt 0:01:00]} Bg7 {[%emt 0:00:00]} 7. d4 {[%emt 0:00:00]} cxd4 {[%emt 0:00:00]} 8. cxd4 {[%emt 0:00:00] White is slightly better.} d5 {[%emt 0:00:00]} 9. e5 {[%emt 0:00:00]} Nge7 {[%emt 0:00:00][%cal Bg8e7,Be7f5,Bf5d6,Bd6e4][%mdl 32]} 10. Nc3 {[%emt 0:02:00]} O-O {[%emt 0:00:00]} 11. Bf4 {[%emt 0:00:30]} f6 {[%emt 0:00:00]} 12. exf6 {[%emt 0:00:30]} Bxf6 {[%emt 0:00:00]} 13. Qd2 {[%emt 0:00:00]} Nf5 {[%emt 0:04:00]} 14. Ne2 {[%emt 0:01:00]} Bg7 {[%emt 0:00:30]} 15. Rac1 {[%emt 0:00:00]} h6 {[%emt 0:00:00]} (15... Bd7 $14) 16. h4 $16 {[%emt 0:01:00]} Kh7 {[%emt 0:01:00]} 17. Rc3 {[%emt 0:00:00]} Nd6 {[%emt 0:00:30]} 18. Qd3 {[%emt 0:01:00] Hoping for h5.} Ne4 {[%emt 0:00:00]} 19. Rcc1 {[%emt 0:00:30]} Bd7 {[%emt 0:01:00]} 20. Rfe1 {[%emt 0:00:30]} Kh8 {[%emt 0:00:00]} 21. Qe3 {[%emt 0:00:00]} Kh7 {[%emt 0:00:00]} 22. Nc3 {[%emt 0:00:00]} Nxc3 {[%emt 0:00:00]} 23. Rxc3 {[%emt 0:00:00]} Rc8 {[%emt 0:00:00]} 24. Qd2 {[%emt 0:02:00]} Qf6 {[%emt 0:00:00]} 25. Ne5 {[%emt 0:00:00] White is more active.} Nxe5 {[%emt 0:00:00]} 26. Bxe5 {[%emt 0:01:00]} Qf5 {[%emt 0:00:00]} (26... Qe7 $16 27. Bxg7 Qxg7) 27. Bxg7 {[%emt 0:00:00]} ({White should play} 27. Rf3 $1 $18 {[%cal Rf3f5]} Qc2 28. Qb4 Rxf3 29. Bxf3) 27... Kxg7 {[%emt 0:00:00]} 28. Bf1 {[%emt 0:01:00]} Rxc3 {[%emt 0:00:00]} 29. bxc3 {[%emt 0:00:30]} Bb5 {[%emt 0:05:00]} (29... Qf6 $16 30. Re5 Qe7) 30. Re5 {[%emt 0:00:30]} Qb1 {[%emt 0:00:00]} 31. Re1 {[%emt 0:00:00]} (31. Qe1 {simplifies} Qxe1 32. Rxe1 Bxf1 33. Kxf1 Kf6 34. Rb1) 31... Qf5 {[%emt 0:00:00] White leaves nothing to chance now.} 32. Bxb5 {[%emt 0:00:00]} axb5 $18 {[%emt 0:00:00][%mdl 4096] Endgame. [#] KQR-KQR} 33. Re5 $1 {[%emt 0:01:30]} Qf7 {[%emt 0:00:00] [#]} 34. Qe2 $1 {[%emt 0:00:00][%csl LRb5,LRe6]} Re8 {[%emt 0:02:30]} 35. Qxb5 {[%emt 0:00:00]} Rc8 {[%emt 0:00:00]} 36. Qe2 {[%emt 0:00:00]} Rc6 {[%emt 0:00:00]} 37. Kg2 {[%emt 0:02:00]} Qf6 {[%emt 0:01:30]} 38. Qb2 {[%emt 0:00:30]} Qf7 {[%emt 0:00:00]} 39. Re3 {[%emt 0:00:00]} Qe7 {[%emt 0:00:00]} 40. Qb5 {[%emt 0:00:00]} Qc7 {[%emt 0:00:31]} 41. Qd3 {[%emt 0:30:59]} h5 {[%emt 0:05:01]} 42. Qd2 {[%emt 0:00:00]} Qe7 {[%emt 0:02:27]} 43. Qe1 {[%emt 0:01:31]} Qd6 {[%emt 0:07:09]} 44. Qe2 {[%emt 0:00:00]} Qe7 {[%emt 0:01:54]} 45. Rf3 {[%emt 0:00:00]} Qd6 {[%emt 0:16:58]} 46. Qe3 {[%emt 0:01:30]} Rc8 $2 {[%emt 0:00:00]} (46... e5 47. dxe5 Qe7) 47. Qg5 {[%emt 0:00:00]} Rf8 {[%emt 0:01:00] Dodges Rf6} 48. Rxf8 {[%emt 0:00:00]} Qxf8 {[%emt 0:00:00] KQ-KQ} 49. Qe5+ {[%emt 0:00:00]} Qf6 {[%emt 0:00:00]} 50. Qc7+ {[%emt 0:00:00]} Qf7 {[%emt 0:00:00]} 51. Qxf7+ {[%emt 0:00:00]} Kxf7 {[%emt 0:00:00] KP-KP} 52. Kf3 {[%emt 0:00:00]} b5 {[%emt 0:00:00]} 53. Kf4 {[%emt 0:00:00] White mates.} Kf6 {[%emt 0:00:00]} 54. a3 {[%emt 0:00:00]} Kf7 {[%emt 0:00:00]} 55. Kg5 {[%emt 0:00:00]} Kg7 {[%emt 0:00:00]} 56. f3 {[%emt 0:00:00][%cal Bf2f3,Bf3g4,Bg4h5][%mdl 32]} Kf7 {[%emt 0:04:30]} 57. g4 {[%emt 0:00:00]} hxg4 {[%emt 0:00:00]} 58. fxg4 {[%emt 0:00:00]} Kg7 {[%emt 0:00:00]} 59. h5 {[%emt 0:00:00]} gxh5 {[%emt 0:00:00]} 60. gxh5 {[%emt 0:00:00] Weighted Error Value: White=0.22 (precise) /Black=0.41.  Mistake:       	White=1     	Black=4      Inaccurate:     	White=2     	Black=3      OK:         	White=16    	Black=14     Best:        	White=2     	Black=1      Strong:       	White=2     	---} 1-0

[Event "Bangabandhu Premier Div League 2023-24"]
[Site "Dhaka"]
[Date "2024.02.07"]
[Round "7.5"]
[White "Nasim Hossain, Bhuiyan"]
[Black "Ikramul, Haq Siam"]
[Result "1-0"]
[ECO "D04"]
[WhiteElo "1812"]
[BlackElo "2036"]
[Annotator "NA RC"]
[PlyCount "111"]
[EventDate "2024.02.01"]
[EventCountry "BAN"]
[SourceTitle "playchess.com"]
[Source "ChessBase"]
[SourceQuality "1"]
[TimeControl "40/5400+30:1800+30"]

1. d4 {[%emt 0:15:57]} Nf6 {[%emt 0:00:27]} 2. Nf3 {[%emt 0:00:16]} d5 {[%emt 0:00:20]} 3. e3 {[%emt 0:00:11]} g6 {[%emt 0:01:37]} 4. Bd3 {[%emt 0:00:09]} Bg7 {[%emt 0:00:06]} 5. O-O {[%emt 0:00:09]} O-O {[%emt 0:00:05]} 6. b3 {[%emt 0:00:03]} c5 {[%emt 0:00:26] D04: Colle System.} 7. Bb2 {[%emt 0:00:07]} Nc6 {[%emt 0:01:58]} 8. Nbd2 {[%emt 0:04:42]} cxd4 {[%emt 0:01:53]} 9. exd4 {[%emt 0:00:07]} Nb4 {[%emt 0:00:06]} 10. Ne5 {[%emt 0:01:31]} Nxd3 {[%emt 0:00:22]} 11. Nxd3 {[%emt 0:00:23]} Bg4 {[%emt 0:01:21]} 12. Nf3 {[%emt 0:02:09]} Rc8 {[%emt 0:00:53]} 13. Nde5 {[%emt 0:00:44]} Bf5 {[%emt 0:00:06]} 14. c4 {[%emt 0:00:08]} Ng4 {[%emt 0:01:52]} 15. Nxg4 {[%emt 0:09:31]} Bxg4 {[%emt 0:00:02]} 16. c5 {[%emt 0:00:07]} Qa5 {[%emt 0:09:21]} 17. a3 {[%emt 0:04:25]} Qb5 {[%emt 0:00:56]} 18. Re1 {[%emt 0:04:37]} Rfe8 {[%emt 0:01:23]} 19. h3 {[%emt 0:00:15]} Bf5 {[%emt 0:00:37]} 20. a4 {[%emt 0:02:25]} Qa5 {[%emt 0:01:45]} 21. Rc1 {[%emt 0:01:21]} Qd8 {[%emt 0:02:11]} 22. b4 {[%emt 0:00:21]} f6 {[%emt 0:03:27]} 23. b5 {[%emt 0:00:39]} Kh8 {[%emt 0:01:16]} 24. Qb3 {[%emt 0:01:55]} Qd7 {[%emt 0:03:46]} 25. a5 {[%emt 0:10:20]} a6 {[%emt 0:00:30]} 26. bxa6 {[%emt 0:06:15]} bxa6 {[%emt 0:00:01]} 27. Ba3 {[%emt 0:00:39]} e5 {[%emt 0:03:10]} 28. dxe5 {[%emt 0:06:09]} fxe5 {[%emt 0:00:08]} 29. Bb2 {[%emt 0:00:23]} d4 {[%emt 0:04:30]} 30. Qc4 {[%emt 0:03:33]} Rc6 {[%emt 0:06:03]} 31. Rcd1 {[%emt 0:07:07]} Be6 {[%emt 0:11:24]} 32. Qe2 {[%emt 0:01:05]} Rxc5 {[%emt 0:03:49]} 33. Ng5 {[%emt 0:06:01]} Bc4 {[%emt 0:05:42]} 34. Qe4 {[%emt 0:03:12]} Rb8 {[%emt 0:03:50]} 35. Qh4 {[%emt 0:05:35]} Bf6 {[%emt 0:05:50]} 36. Bc1 {[%emt 0:03:20]} Bg8 {[%emt 0:08:08]} 37. Qg3 {[%emt 0:01:42]} Rb3 {[%emt 0:00:34]} 38. f3 {[%emt 0:00:59]} Rxa5 {[%emt 0:06:34]} 39. Ne4 {[%emt 0:00:18]} Bg7 {[%emt 0:00:34]} 40. Bg5 {[%emt 0:00:19]} Rb2 {[%emt 0:03:38]} 41. Ra1 {[%emt 0:08:04]} Raa2 {[%emt 0:06:27]} 42. Rxa2 {[%emt 0:00:21]} Bxa2 {[%emt 0:00:45]} (42... Rxa2 $17 43. Bf6 Qf5 44. Bxg7+ Kxg7) 43. Nf6 $1 {[%emt 0:00:05]} Qf7 {[%emt 0:08:56]} 44. Qxe5 {[%emt 0:01:53]} h6 {[%emt 0:02:06]} (44... Rb1 $11 45. Rxb1 Bxb1) 45. Qe8+ {[%emt 0:01:11]} ({Worse is} 45. Qxd4 hxg5 46. Qxb2 Bxf6 $15 (46... Qxf6 $2 {too greedy.} 47. Qxa2 Qc3 48. Qb1 $18)) 45... Bf8 {[%emt 0:02:46]} 46. Bxh6 {[%emt 0:02:48]} Rb1 $18 {[%emt 0:02:36]} 47. Rxb1 {[%emt 0:01:40]} (47. Qxf8+ $2 {loses.} Qxf8 48. Bxf8 Rxe1+ 49. Kf2 Rc1 $19) 47... Qxe8 {[%emt 0:00:07]} 48. Nxe8 {[%emt 0:00:15]} Bxh6 {[%emt 0:00:23]} 49. Rb7 {[%emt 0:02:13]} Bc4 $2 {[%emt 0:00:47]} (49... Be3+ 50. Kh1 Kg8 51. Nf6+ Kf8) 50. Nf6 {[%emt 0:00:09]} Be3+ {[%emt 0:00:39]} 51. Kh2 {[%emt 0:00:09]} Bg8 {[%emt 0:00:00]} 52. Kg3 {[%emt 0:02:59]} Bg5 {[%emt 0:00:28]} 53. Nxg8 {[%emt 0:01:04]} Kxg8 {[%emt 0:00:08]} 54. Rb6 {[%emt 0:00:12]} Kf7 {[%emt 0:01:01]} 55. f4 {[%emt 0:00:18]} Be7 {[%emt 0:00:34]} 56. Rxa6 {[%emt 0:00:08]} 1-0

[Event "Bangabandhu Premier Div League 2023-24"]
[Site "Dhaka"]
[Date "2024.02.07"]
[Round "7.6"]
[White "Mohammad Nubairshah Shaikh"]
[Black "Mrittika Mallick"]
[Result "1-0"]
[ECO "A11"]
[WhiteElo "2428"]
[BlackElo "1859"]
[Annotator "RC"]
[PlyCount "57"]
[EventDate "2024.02.01"]
[EventCountry "BAN"]
[SourceTitle "playchess.com"]
[Source "ChessBase"]
[SourceQuality "1"]
[TimeControl "40/5400+30:1800+30"]

1. Nf3 {[%emt 0:04:55]} d5 {[%emt 0:00:11]} 2. g3 {[%emt 0:00:02]} Nf6 {[%emt 0:00:09]} 3. Bg2 {[%emt 0:00:03]} Bf5 {[%emt 0:00:11]} 4. c4 {[%emt 0:00:05]} c6 {[%emt 0:00:47]} 5. Qb3 {[%emt 0:00:23]} Qb6 {[%emt 0:00:45]} 6. d3 {[%emt 0:00:03]} e6 {[%emt 0:02:09]} 7. Be3 {[%emt 0:00:03]} Qb4+ {[%emt 0:04:02]} 8. Nc3 {[%emt 0:02:29]} a5 {[%emt 0:03:27]} 9. Nh4 {[%emt 0:02:54]} Bg6 {[%emt 0:07:29]} 10. O-O {[%emt 0:07:14]} a4 {[%emt 0:02:07]} 11. Qxb4 {[%emt 0:11:53]} Bxb4 {[%emt 0:00:08]} 12. a3 {[%emt 0:06:07]} Bxc3 {[%emt 0:07:33]} 13. Nxg6 {[%emt 0:00:38]} hxg6 {[%emt 0:00:40]} 14. bxc3 {[%emt 0:00:02]} dxc4 {[%emt 1:07:52]} 15. Rfb1 {[%emt 0:00:41]} cxd3 {[%emt 0:00:00]} 16. exd3 {[%emt 0:03:35]} Nd5 {[%emt 0:00:00]} 17. Bd4 {[%emt 0:03:11]} b5 {[%emt 0:00:00]} 18. c4 {[%emt 0:04:40]} bxc4 {[%emt 0:00:00]} 19. dxc4 {[%emt 0:00:02]} Nf6 {[%emt 0:00:00]} 20. Bc5 {[%emt 0:00:43]} Nbd7 {[%emt 0:00:00]} 21. Bd6 {[%emt 0:04:37]} Ra6 {[%emt 0:00:00]} 22. Rb7 {[%emt 0:05:54]} Kd8 {[%emt 0:00:00]} 23. Rd1 {[%emt 0:03:54]} Rh5 {[%emt 0:00:00]} 24. f4 {[%emt 0:02:40]} Rha5 {[%emt 0:00:00]} 25. Be5 {[%emt 0:13:46]} Ke8 {[%emt 0:00:00]} 26. Bc3 {[%emt 0:02:08]} Rc5 {[%emt 0:00:00]} 27. Bf1 {[%emt 0:00:01]} g5 {[%emt 0:00:00]} 28. Bb4 {[%emt 0:01:25]} gxf4 {[%emt 0:00:00]} 29. Bxc5 {[%emt 0:02:23]} 1-0

[Event "Bangabandhu Premier Div League 2023-24"]
[Site "Dhaka"]
[Date "2024.02.07"]
[Round "7.6"]
[White "Sanket Chakravarty"]
[Black "Mohammed Abdul, Malek"]
[Result "1-0"]
[ECO "C50"]
[WhiteElo "2361"]
[BlackElo "2047"]
[Annotator "TA"]
[PlyCount "67"]
[EventDate "2024.02.01"]
[EventCountry "BAN"]
[SourceTitle "playchess.com"]
[Source "ChessBase"]
[SourceQuality "1"]
[TimeControl "40/5400+30:1800+30"]

{[%evp 14,67,0,8,8,7,6,4,10,15,4,27,0,10,36,4,5,6,11,0,25,39,29,0,0,3,20,23,36,25,392,408,421,437,440,436,435,428,622,632,624,620,653,645,688,692,1541,1491,29987,29988,29988,29989,29988,1310,1750,1381]} 1. e4 {[%emt 0:16:49]} e5 {[%emt 0:00:41]} 2. Nf3 {[%emt 0:00:13]} Nc6 {[%emt 0:00:02]} 3. Bc4 {[%emt 1:14:58]} Be7 {[%emt 0:01:11]} 4. Nc3 {[%emt 0:00:00]} Nf6 {[%emt 0:00:30]} 5. d4 {[%emt 0:00:00]} d6 {[%emt 0:01:04]} 6. h3 {[%emt 0:00:00]} O-O {[%emt 0:00:07]} 7. O-O {[%emt 0:00:00]} Nxe4 {[%emt 0:06:08]} 8. Nxe4 {[%emt 0:00:00] aiming for dxe5.} d5 {[%emt 0:00:41] [#]} 9. Bxd5 $1 {[%emt 0:00:00]} Qxd5 {[%emt 0:00:14]} 10. Nc3 {[%emt 0:00:00] Excellent horsemanship.} Qd6 {[%emt 0:04:52] The position is equal.} 11. dxe5 {[%emt 0:00:00]} Nxe5 {[%emt 0:00:13]} 12. Nxe5 {[%emt 0:00:00]} Qxe5 {[%emt 0:00:28]} 13. Re1 {[%emt 0:00:00]} Qd6 {[%emt 0:04:46]} 14. Qf3 {[%emt 0:00:00]} c6 {[%emt 0:01:06]} 15. Bf4 {[%emt 0:00:00]} Qf6 {[%emt 0:00:25]} 16. Re5 {[%emt 0:00:00] Black must now prevent Ne4.} Be6 {[%emt 0:05:03]} 17. Ne4 $36 {[%emt 0:00:00][%mdl 2048] White is pushing.} Qg6 {[%emt 0:00:27]} 18. Re1 {[%emt 0:07:30]} h6 {[%emt 1:11:32]} 19. Re3 {[%emt 0:00:00]} Bd8 {[%emt 0:00:00][%cal Oe6d5]} 20. Qe2 {[%emt 0:00:00]} Bh4 {[%emt 0:00:00][%cal Oe6d5] Prevents Rg3} 21. b3 {[%emt 0:00:00] Rh5 is the strong threat.} Rad8 $2 {[%emt 0:00:00][%mdl 8192] [#] Loses the game.} (21... Bd5 $11 {and Black is okay.}) 22. Rh5 $1 $18 {[%emt 0:00:00]} f5 {[%emt 0:00:00]} 23. Ng3 {[%emt 0:02:30][%cal Be4g3,Bg3h5,Bh5g7,Bg7e6][%mdl 32]} (23. Rxh4 fxe4 24. Rg3 (24. Rxe4 Bd5 $11) 24... Qf6 25. Rxh6 Qxf4 $16) ({Don't play} 23. Nc3 Bf6 $18) 23... Bf7 {[%emt 0:00:00]} 24. Rxh4 {[%emt 0:00:30]} Qf6 {[%emt 0:00:00]} 25. Rh5 {[%emt 0:00:00]} Bxh5 {[%emt 0:00:00]} (25... Bg6 $142 26. Be5 Qf7) 26. Nxh5 {[%emt 0:00:00]} Qd4 {[%emt 0:00:00]} 27. Kh2 {[%emt 0:01:30]} Qd1 {[%emt 0:04:30]} 28. Qc4+ {[%emt 0:00:00]} Rd5 {[%emt 0:00:00] [#]} 29. Nxg7 {[%emt 0:01:00][%mdl 512] Ne6 would now be deadly.} Rf7 {[%emt 0:00:25]} (29... Qd4 30. Ne6) 30. Ne6 {[%emt 0:00:30]} Qh5 {[%emt 0:01:05]} 31. Qc3 {[%emt 0:00:00]} Kh7 {[%emt 0:00:00]} 32. Rg3 {[%emt 0:00:00]} Rdd7 {[%emt 0:00:00]} 33. Bc1 {[%emt 0:00:00]} (33. Qe5 $142 Qh4 34. Qb8 Qxg3+ 35. fxg3 (35. Kxg3 c5 $18) (35. Bxg3 Rde7 $18) 35... Rde7 36. Be5 Rg7 37. Nxg7 (37. Nf8+ Kg8 38. Ng6+ Kh7 39. Nxe7 Rxe7 40. Qh8+ Kg6 41. Qg8+ Rg7 42. Qxg7+ Kh5 43. g4+ fxg4 44. Qxg4#) 37... f4 38. g4 (38. gxf4 Rxg7 39. Qf8 Rxg2+ 40. Kxg2 Kg6 41. Qf6+ Kh5 42. Qf7+ Kh4 43. Bf6#)) 33... f4 {[%emt 0:00:40]} 34. Rg4 {[%emt 0:00:00] Weighted Error Value: White=0.04 (flawless) /Black=0.62.  Loses game:     	---       	Black=1      Mistake:       	---       	Black=1      Inaccurate:     	White=2     	Black=1      OK:         	White=11    	Black=6      Best:        	---       	Black=1      Strong:       	White=1     	---} 1-0